bitfinex/quotes_SOLUSD_20250924
["timestamp","ask_amount","ask_price","bid_price","bid_amount"]
[1758688865229,3.66293025,209.32,209.31,39.6]
[1758688868920,0.72,209.4,209.31,39.6]
[1758688869127,3.66293025,209.34,209.32,0.69]
[1758688871204,4.77640635,209.37,209.32,0.69]
[1758688871409,3.66293025,209.34,209.33,39.58]
[1758688872519,3.66293025,209.34,209.23,17.25852426]
[1758688872520,4.38293025,209.34,209.23,25.54386604]
[1758688872721,5.49691793,209.34,209.26,26.69]
[1758688872919,5.49691793,209.34,209.27,0.69]
[1758688872920,3.66293025,209.31,209.27,0.69]
[1758688873419,3.66293025,209.31,209.28,0.69]
[1758688873623,0.72,209.37,209.29,40.24]
[1758688873814,3.66293025,209.32,209.29,40.24]
[1758688874009,3.66293025,209.32,209.3,0.66]
[1758688874216,3.66293025,209.32,209.31,0.66]
[1758688874616,1.52189173,209.33,209.31,5.43760259]
[1758688875309,1.52189173,209.34,209.32,0.66]
[1758688875517,1.52189173,209.34,209.33,39.56]
[1758688876736,1.52189173,209.34,209.33,40.22]
[1758688877441,1.52189173,209.34,209.33,39.56]
[1758688878325,1.52189173,209.34,209.3,5.43766369]
[1758688878516,1.52189173,209.34,209.31,40.22]
[1758688878717,1.52189173,209.34,209.32,0.66]
[1758688879534,1.52189173,209.34,209.33,0.66]
[1758688880131,1.52189173,209.35,209.33,0.66]
[1758688880434,1.52189173,209.35,209.34,0.66]
[1758688880632,1.52189173,209.35,209.32,0.72]
[1758688880841,1.52189173,209.35,209.33,0.72]
[1758688881014,1.52189173,209.35,209.34,0.72]
[1758688881415,1.52189173,209.35,209.32,0.72]
[1758688881726,1.52189173,209.35,209.34,4.77691793]
[1758688881910,1.52189173,209.35,209.32,0.72]
[1758688882111,1.52189173,209.4,209.33,40.26]
[1758688882419,0.1,209.42,209.34,40.26]
[1758688882618,0.1,209.42,209.34,54.62373315]
[1758688882818,2.47610642,209.42,209.35,0.72]
[1758688883132,0.1,209.42,209.35,0.72]
[1758688883723,0.1,209.42,209.36,4.77646159]
[1758688883941,2.47610642,209.42,209.37,0.72]
[1758688884145,2.47610642,209.42,209.34,45.14047764]
[1758688884146,2.37610642,209.4,209.34,45.14047764]
[1758688884347,2.37610642,209.4,209.35,39.54]
[1758688884938,2.37610642,209.4,209.36,0.72]
[1758688885141,4.87510305,209.42,209.37,0.72]
[1758688885346,2.37610642,209.41,209.37,0.72]
[1758688885720,4.87510305,209.42,209.37,0.72]
[1758688886027,2.37610642,209.39,209.31,5.49759066]
[1758688886230,2.37610642,209.37,209.32,39.52]
[1758688886544,4.87510305,209.42,209.32,39.52]
[1758688886545,2.37610642,209.39,209.33,0.72]
[1758688887323,2.37610642,209.37,209.32,39.52]
[1758688887528,0.67,209.36,209.32,39.52]
[1758688887934,4.77668975,209.35,209.32,39.52]
[1758688888151,0.67,209.41,209.33,0.72]
[1758688888334,2.37610642,209.4,209.33,0.72]
[1758688888538,5.44532114,209.41,209.33,0.72]
[1758688888738,7.82142756,209.41,209.33,0.72]
[1758688889553,19.75973041,209.41,209.33,0.72]
[1758688889757,2.37610642,209.39,209.33,0.72]
[1758688890059,7.82194991,209.39,209.33,5.49711536]
[1758688890367,7.82194991,209.39,209.32,39.52]
[1758688890557,0.67,209.38,209.32,39.52]
[1758688890734,2.37610642,209.37,209.32,39.52]
[1758688890935,0.67,209.36,209.32,39.52]
[1758688891161,3.04610642,209.35,209.32,39.52]
[1758688891452,3.04610642,209.37,209.32,39.52]
[1758688891658,0.77,209.42,209.33,0.72]
[1758688891859,2.37610642,209.4,209.33,0.72]
[1758688892033,7.15183389,209.4,209.33,5.49693443]
[1758688893453,2.37610642,209.4,209.33,5.49693443]
[1758688893658,7.15168352,209.4,209.33,5.49693443]
[1758688894167,7.15168352,209.4,209.33,0.72]
[1758688894371,7.82168352,209.4,209.33,5.49714426]
[1758688894581,3.04610642,209.4,209.33,5.49714426]
[1758688894739,7.82169878,209.4,209.33,5.49714426]
[1758688895076,7.82169878,209.4,209.34,0.72]
[1758688895448,7.82169878,209.4,209.34,5.49688672]
[1758688895680,0.1,209.42,209.35,0.72]
[1758688895852,0.1,209.42,209.37,26.0]
[1758688896167,0.1,209.42,209.38,42.59610642]
[1758688896549,0.1,209.42,209.39,0.72]
[1758688897170,0.1,209.42,209.4,2.37610642]
[1758688897378,0.1,209.42,209.41,0.72]
[1758688897551,0.1,209.42,209.38,39.5]
[1758688898262,0.67,209.41,209.38,39.5]
[1758688898573,0.67,209.4,209.38,39.5]
[1758688898870,4.87523066,209.42,209.38,39.5]
[1758688899042,5.54523066,209.42,209.38,39.5]
[1758688899242,0.67,209.41,209.38,39.5]
[1758688899448,5.44539007,209.41,209.38,39.5]
[1758688899756,0.1,209.42,209.38,39.5]
[1758688899969,0.1,209.42,209.39,0.72]
[1758688900284,4.87516071,209.42,209.38,39.5]
[1758688900775,4.87516071,209.42,209.38,40.22]
[1758688900975,4.87516071,209.42,209.38,39.5]
[1758688901743,0.67,209.41,209.38,39.5]
[1758688902158,0.1,209.42,209.38,39.5]
[1758688902355,0.1,209.42,209.39,0.72]
[1758688902683,0.1,209.42,209.4,0.72]
[1758688903584,4.87513114,209.42,209.4,0.72]
[1758688903753,4.87513114,209.42,209.38,40.22]
[1758688903949,0.1,209.42,209.39,0.72]
[1758688904282,0.1,209.42,209.4,0.72]
[1758688905880,0.1,209.42,209.38,40.22]
[1758688906053,0.1,209.42,209.39,0.72]
[1758688906245,0.1,209.42,209.4,0.72]
[1758688906441,0.1,209.42,209.38,44.27593206]
[1758688906442,0.1,209.42,209.41,0.72]
[1758688907463,0.1,209.42,209.41,29.09610642]
[1758688907657,0.1,209.42,209.41,33.87142756]
[1758688908388,0.1,209.42,209.41,29.09610642]
[1758688908890,0.1,209.42,209.41,33.87142756]
[1758688909264,0.1,209.42,209.41,66.16]
[1758688909459,0.1,209.42,209.41,39.44]
[1758688910565,0.81,209.42,209.41,39.44]
[1758688910985,5.58509311,209.42,209.41,39.44]
[1758688912080,4.87509311,209.42,209.41,39.44]
[1758688912287,4.87509311,209.42,209.36,0.66]
[1758688912597,2.37610642,209.38,209.37,39.44]
[1758688913697,3.08610642,209.38,209.37,39.44]
[1758688913878,7.86211176,209.38,209.37,39.44]
[1758688916992,19.80212513,209.38,209.32,39.42]
[1758688917174,2.37610642,209.33,209.32,39.42]
[1758688917377,3.08610642,209.33,209.32,39.42]
[1758688918094,3.08610642,209.33,209.28,39.42]
[1758688918294,2.37610642,209.29,209.28,39.42]
[1758688918671,3.08610642,209.29,209.28,39.42]
[1758688918985,7.86416557,209.29,209.28,39.42]
[1758688919289,7.15416557,209.29,209.28,39.42]
[1758688919592,2.37610642,209.29,209.28,39.42]
[1758688920187,2.37610642,209.3,209.28,40.08]
[1758688920389,2.37610642,209.3,209.28,39.42]
[1758688921192,4.77668975,209.35,209.29,0.66]
[1758688921373,2.37610642,209.33,209.29,0.66]
[1758688921887,2.37610642,209.32,209.24,26.0]
[1758688922213,2.37610642,209.32,209.25,40.08]
[1758688922214,3.08610642,209.32,209.25,40.08]
[1758688922379,2.37610642,209.3,209.25,40.08]
[1758688922579,3.74895663,209.38,209.25,40.08]
[1758688922580,2.37610642,209.31,209.26,0.66]
[1758688923008,2.37610642,209.33,209.27,4.77851579]
[1758688923185,3.08610642,209.33,209.25,44.85883173]
[1758688923387,2.37610642,209.33,209.26,0.66]
[1758688923809,4.77689024,209.35,209.26,0.66]
[1758688924013,2.37610642,209.34,209.26,0.66]
[1758688924494,2.37610642,209.34,209.26,3.03610642]
[1758688924694,2.37610642,209.34,209.27,0.66]
[1758688925191,2.37610642,209.34,209.28,4.77828746]
[1758688925386,2.37610642,209.34,209.28,5.43828746]
[1758688925587,4.77674005,209.35,209.28,5.43828746]
[1758688925786,2.37610642,209.34,209.29,0.66]
[1758688926013,2.37610642,209.34,209.3,40.08]
[1758688926997,2.37610642,209.32,209.3,39.42]
[1758688927399,0.71,209.31,209.3,39.42]
[1758688927609,2.37610642,209.32,209.3,39.42]
[1758688927992,3.08610642,209.32,209.3,39.42]
[1758688928392,2.37610642,209.32,209.3,39.42]
[1758688928785,0.71,209.41,209.31,0.66]
[1758688928989,2.37610642,209.39,209.32,4.77737435]
[1758688929211,2.37610642,209.39,209.33,0.66]
[1758688929408,2.37610642,209.35,209.33,0.66]
[1758688930105,2.37610642,209.35,209.34,0.66]
[1758688930907,2.37610642,209.37,209.34,0.66]
[1758688931192,2.37610642,209.38,209.35,40.06]
[1758688931387,2.37610642,209.38,209.36,39.4]
[1758688931592,2.37610642,209.39,209.36,39.4]
[1758688932013,2.47610642,209.42,209.37,0.66]
[1758688932211,2.37610642,209.4,209.38,0.66]
[1758688932492,2.47610642,209.42,209.39,0.66]
[1758688932810,0.1,209.42,209.4,0.66]
[1758688933114,0.1,209.42,209.41,40.06]
[1758688933700,0.1,209.42,209.41,44.83532114]
[1758688934720,0.1,209.42,209.41,70.83532114]
[1758688936730,0.1,209.55,209.48,26.0]
[1758688936918,0.1,209.55,209.5,4.77326968]
[1758688937116,0.1,209.55,209.51,39.38]
[1758688937326,2.37610642,209.54,209.52,39.38]
[1758688937504,2.37610642,209.54,209.5,0.68]
[1758688937505,2.37610642,209.54,209.53,39.38]
[1758688938620,5.59447679,209.54,209.53,39.38]
[1758688940452,5.59447679,209.54,209.49,4.77346762]
[1758688940453,5.59447679,209.54,209.47,4.77375726]
[1758688940730,5.59447679,209.51,209.48,39.36]
[1758688940924,5.59447679,209.51,209.49,0.7]
[1758688941126,5.59447679,209.51,209.5,0.7]
[1758688941645,5.59447679,209.51,209.48,40.06]
[1758688941819,5.59447679,209.51,209.49,0.7]
[1758688942724,5.59447679,209.52,209.49,0.7]
[1758688943030,5.59447679,209.52,209.49,5.47345858]
[1758688943230,4.87216558,209.55,209.49,5.47345858]
[1758688943542,5.59447679,209.52,209.49,5.47345858]
[1758688944125,4.87216558,209.55,209.49,5.47345858]
[1758688944330,5.59447679,209.52,209.49,5.47345858]
[1758688944539,3.65122501,209.53,209.49,5.47345858]
[1758688944744,0.1,209.55,209.5,0.7]
[1758688944947,0.77,209.55,209.49,4.77345858]
[1758688945118,5.54216827,209.55,209.48,40.06]
[1758688945434,5.54216827,209.55,209.49,39.34]
[1758688946021,5.54216827,209.55,209.5,39.34]
[1758688946220,8.42438544,209.51,209.45,26.7]
[1758688946430,3.65122501,209.47,209.46,39.34]
[1758688946631,3.65122501,209.47,209.46,40.04]
[1758688946826,3.65122501,209.49,209.41,38.74]
[1758688947017,3.65122501,209.45,209.43,0.7]
[1758688947219,3.65122501,209.45,209.44,39.34]
[1758688947730,4.32122501,209.45,209.44,39.34]
[1758688947934,4.32122501,209.45,209.32,12.63181558]
[1758688948137,3.65122501,209.38,209.33,37.56]
[1758688948312,3.65122501,209.38,209.34,0.7]
[1758688948519,0.67,209.46,209.35,0.7]
[1758688948730,3.65122501,209.41,209.35,0.7]
[1758688948926,3.65122501,209.42,209.35,0.7]
[1758688949323,3.65122501,209.4,209.35,0.7]
[1758688949833,3.65122501,209.4,209.36,39.34]
[1758688950351,4.77509311,209.42,209.36,39.34]
[1758688950655,0.67,209.43,209.36,44.11645932]
[1758688950949,11.93580464,209.46,209.37,0.7]
[1758688950950,3.65122501,209.41,209.37,0.7]
[1758688951153,3.65122501,209.43,209.37,0.7]
[1758688951868,3.65122501,209.41,209.37,0.7]
[1758688952158,3.65122501,209.41,209.38,0.7]
[1758688952649,3.65122501,209.41,209.36,44.81645932]
[1758688952856,3.65122501,209.41,209.37,0.7]
[1758688953264,0.67,209.4,209.36,39.34]
[1758688953464,0.67,209.4,209.37,39.34]
[1758688953465,3.65122501,209.4,209.37,39.34]
[1758688953632,0.67,209.46,209.37,40.04]
[1758688953831,3.65122501,209.44,209.37,40.04]
[1758688954565,4.77486511,209.43,209.37,40.04]
[1758688954863,3.65122501,209.42,209.37,40.04]
[1758688955168,3.65122501,209.42,209.37,44.81620084]
[1758688956147,3.65122501,209.42,209.38,0.7]
[1758688956355,3.65122501,209.42,209.37,44.11620084]
[1758688956553,8.4263671,209.42,209.35,4.77668975]
[1758688956770,8.4263671,209.42,209.38,39.32]
[1758688956942,8.4263671,209.42,209.34,17.70949926]
[1758688956943,3.65122501,209.4,209.34,14.75827425]
[1758688957268,3.65122501,209.4,209.35,39.32]
[1758688957655,3.65122501,209.4,209.36,39.32]
[1758688957858,3.65122501,209.38,209.31,0.7]
[1758688958060,3.65122501,209.38,209.32,39.32]
[1758688958643,11.93773278,209.42,209.33,0.7]
[1758688958860,1.52116581,209.4,209.33,0.7]
[1758688959542,6.29686122,209.4,209.33,5.47703399]
[1758688960268,5.44519874,209.42,209.34,0.7]
[1758688960468,1.52116581,209.4,209.34,0.7]
[1758688960646,5.44519874,209.42,209.34,0.7]
[1758688960969,1.52116581,209.41,209.34,0.7]
[1758688961169,6.29662846,209.41,209.34,5.47677117]
[1758688962753,1.52116581,209.39,209.33,0.7]
[1758688962959,5.44546265,209.41,209.34,39.32]
[1758688963280,1.52116581,209.39,209.34,39.32]
[1758688963452,4.77546265,209.41,209.35,0.7]
[1758688963775,4.77524831,209.42,209.35,0.7]
[1758688963976,1.52116581,209.41,209.34,40.02]
[1758688964280,0.67,209.4,209.34,39.32]
[1758688964453,1.52116581,209.39,209.35,0.7]
[1758688964783,1.52116581,209.39,209.36,0.7]
[1758688964950,0.67,209.43,209.36,0.7]
[1758688965152,1.52116581,209.41,209.34,44.79689291]
[1758688965377,49.87017424,209.47,209.32,19.00747072]
[1758688965378,1.52116581,209.39,209.32,19.00747072]
[1758688965580,1.52116581,209.39,209.35,39.3]
[1758688965877,4.77510795,209.42,209.36,0.7]
[1758688966056,1.52116581,209.4,209.33,0.7]
[1758688966248,1.52116581,209.36,209.3,26.7]
[1758688966450,1.52116581,209.34,209.29,14.499171]
[1758688966662,6.29820165,209.34,209.3,39.3]
[1758688966873,4.77703584,209.34,209.3,39.3]
[1758688967188,6.29787322,209.35,209.3,39.3]
[1758688967367,1.52116581,209.35,209.31,0.7]
[1758688967568,6.29763584,209.36,209.32,0.7]
[1758688968298,4.7762352,209.37,209.32,0.7]
[1758688968461,6.29740101,209.37,209.32,0.7]
[1758688968791,1.52116581,209.37,209.33,0.7]
[1758688968993,1.52116581,209.37,209.31,0.7]
[1758688969296,1.52116581,209.37,209.31,5.47760259]
[1758688970765,6.29752512,209.37,209.31,5.47760259]
[1758688971986,1.52116581,209.37,209.31,5.47760259]
[1758688972768,6.2974314,209.37,209.31,5.47760259]
[1758688972969,4.77626559,209.37,209.31,5.44760259]
[1758688973800,1.52116581,209.37,209.31,5.44760259]
[1758688973971,1.52116581,209.37,209.32,0.67]
[1758688974171,1.52116581,209.37,209.31,4.77760259]
[1758688974172,1.52116581,209.37,209.33,0.67]
[1758688974475,0.67,209.39,209.34,39.97]
[1758688974668,1.52116581,209.38,209.34,39.97]
[1758688974865,1.52116581,209.38,209.34,39.3]
[1758688975480,5.44582704,209.39,209.34,39.3]
[1758688975789,1.52116581,209.38,209.34,39.3]
[1758688975992,6.29719642,209.38,209.34,39.3]
[1758688976491,11.93641004,209.45,209.34,44.07691778]
[1758688976696,0.67,209.44,209.35,0.67]
[1758688976876,1.52116581,209.41,209.35,0.67]
[1758688977782,6.29652262,209.41,209.35,5.44656912]
[1758688978093,1.52116581,209.39,209.36,39.28]
[1758688978268,2.19116581,209.39,209.37,39.28]
[1758688978789,1.52116581,209.39,209.37,39.28]
[1758688979099,6.29705633,209.39,209.37,39.28]
[1758688979571,6.96705633,209.39,209.37,39.28]
[1758688979967,6.29705633,209.39,209.33,0.67]
[1758688980173,1.52116581,209.37,209.34,39.28]
[1758688980374,1.52116581,209.35,209.31,0.67]
[1758688980590,1.52116581,209.35,209.28,26.0]
[1758688980769,1.52116581,209.32,209.27,0.67]
[1758688980969,0.67,209.34,209.24,0.67]
[1758688980970,1.52116581,209.3,209.24,0.67]
[1758688981170,4.77757638,209.32,209.25,39.95]
[1758688981397,1.52116581,209.31,209.26,0.67]
[1758688981704,1.52116581,209.31,209.27,0.67]
[1758688981872,1.52116581,209.31,209.28,0.67]
[1758688982071,1.52116581,209.31,209.25,39.95]
[1758688982676,1.52116581,209.29,209.25,39.95]
[1758688982875,1.52116581,209.29,209.26,39.26]
[1758688983093,1.52116581,209.27,209.23,0.67]
[1758688983279,1.52116581,209.27,209.24,39.26]
[1758688983582,0.67,209.26,209.18,0.67]
[1758688983780,0.67,209.26,209.19,39.26]
[1758688983978,0.67,209.26,209.19,39.93]
[1758688984272,1.52116581,209.26,209.2,0.67]
[1758688984493,1.52116581,209.28,209.2,0.67]
[1758688985097,59.26,209.4,209.2,0.67]
[1758688985098,0.67,209.35,209.24,4.77920091]
[1758688985278,1.52116581,209.34,209.25,41.45116581]
[1758688985494,1.52116581,209.34,209.26,0.67]
[1758688986572,1.52116581,209.34,209.26,2.19116581]
[1758688986774,1.52116581,209.34,209.27,17.39480527]
[1758688986997,0.67,209.37,209.28,0.67]
[1758688987189,1.52116581,209.36,209.28,2.19116581]
[1758688987389,1.52116581,209.36,209.29,0.67]
[1758688987596,1.52116581,209.36,209.3,39.26]
[1758688987793,1.52116581,209.36,209.31,0.67]
[1758688987982,1.52116581,209.36,209.32,0.67]
[1758688988185,31.44598202,209.39,209.33,0.67]
[1758688988398,1.52116581,209.36,209.33,0.67]
[1758688989098,1.52116581,209.36,209.34,39.26]
[1758688989775,1.52116581,209.36,209.35,0.67]
[1758688990097,1.52116581,209.36,209.34,39.26]
[1758688990777,1.52116581,209.37,209.34,44.70690888]
[1758688990980,1.52116581,209.37,209.34,44.03690888]
[1758688991176,1.52116581,209.37,209.35,0.67]
[1758688994600,1.52116581,209.33,209.3,39.24]
[1758688994902,1.52116581,209.31,209.26,0.69]
[1758688995100,1.52116581,209.31,209.27,39.93]
[1758688995881,6.29881766,209.31,209.27,39.93]
[1758688996082,6.29881766,209.31,209.27,39.24]
[1758688996391,1.52116581,209.31,209.27,39.93]
[1758688997207,1.52116581,209.31,209.28,0.69]
[1758688997380,1.52116581,209.31,209.27,39.24]
[1758688997577,1.52116581,209.31,209.28,0.69]
[1758688997777,6.2983305,209.33,209.28,0.69]
[1758688998003,7.0183305,209.33,209.28,0.69]
[1758688998210,1.52116581,209.31,209.27,39.24]
[1758688998413,1.52116581,209.3,209.27,39.93]
[1758688998610,1.52116581,209.3,209.27,0.69]
[1758688998793,1.52116581,209.32,209.28,39.93]
[1758688999509,0.72,209.4,209.29,0.69]
[1758688999808,1.52116581,209.37,209.29,0.69]
[1758689000312,6.29742963,209.37,209.3,4.77783086]
[1758689000483,1.52116581,209.33,209.31,39.22]
[1758689001210,17.43684747,209.37,209.31,39.22]
[1758689001406,1.52116581,209.34,209.31,39.22]
[1758689001708,4.77596659,209.39,209.32,0.68]
[1758689001882,1.52116581,209.36,209.32,0.68]
[1758689002385,6.29777628,209.36,209.32,0.68]
[1758689002585,1.52116581,209.34,209.33,39.22]
[1758689004090,4.77691214,209.35,209.33,39.22]
[1758689004291,1.52116581,209.34,209.33,39.22]
[1758689004601,2.37767996,209.34,209.33,39.22]
[1758689005200,26.0,209.3,209.18,0.68]
[1758689005497,26.0,209.3,209.22,39.22]
[1758689005498,2.37767996,209.26,209.22,39.22]
[1758689005698,2.37767996,209.26,209.23,3.0]
[1758689006014,2.37767996,209.28,209.24,0.68]
[1758689007210,2.37767996,209.28,209.25,0.68]
[1758689007416,2.37767996,209.3,209.25,0.68]
[1758689007714,0.72,209.37,209.26,0.68]
[1758689008030,4.77600534,209.38,209.27,16.72480527]
[1758689008215,2.37767996,209.36,209.28,0.68]
[1758689008524,2.37767996,209.36,209.29,39.2]
[1758689008696,2.37767996,209.36,209.3,0.68]
[1758689010103,0.72,209.4,209.31,4.77760259]
[1758689010304,2.37767996,209.36,209.32,0.68]
[1758689010488,2.37767996,209.36,209.33,0.68]
[1758689012225,2.37767996,209.36,209.31,0.68]
[1758689012428,2.37767996,209.36,209.32,0.68]
[1758689012803,7.1542159,209.36,209.33,39.2]
[1758689013125,2.37767996,209.34,209.33,39.2]
[1758689013615,2.37767996,209.34,209.3,26.0]
[1758689013812,2.37767996,209.32,209.28,0.68]
[1758689014014,2.37767996,209.32,209.31,39.2]
[1758689014211,7.15505431,209.32,209.31,39.2]
[1758689014909,2.37767996,209.32,209.31,39.2]
[1758689016140,2.37767996,209.32,209.28,0.68]
[1758689016305,2.37767996,209.3,209.29,39.18]
[1758689017228,3.09767996,209.3,209.21,4.77988382]
[1758689017437,2.37767996,209.28,209.22,39.86]
[1758689017808,2.37767996,209.26,209.22,39.86]
[1758689018018,2.37767996,209.26,209.22,39.18]
[1758689018229,2.37767996,209.25,209.22,39.18]
[1758689018929,2.37767996,209.25,209.22,39.86]
[1758689019616,2.37767996,209.25,209.23,0.68]
[1758689020327,4.77901018,209.25,209.22,39.18]
[1758689020527,4.77760259,209.31,209.23,0.68]
[1758689020736,2.37767996,209.29,209.23,0.68]
[1758689021734,7.15596267,209.29,209.23,0.68]
[1758689021910,2.37767996,209.27,209.23,0.68]
[1758689022405,2.37767996,209.27,209.22,39.18]
[1758689022611,2.37767996,209.27,209.22,39.86]
[1758689022810,2.37767996,209.27,209.22,39.18]
[1758689023048,0.72,209.26,209.22,39.18]
[1758689023238,3.09767996,209.25,209.22,39.18]
[1758689023726,4.77783086,209.3,209.23,7.83710145]
[1758689024033,4.77783086,209.3,209.22,39.18]
[1758689024034,0.72,209.29,209.2,0.68]
[1758689024237,2.37767996,209.25,209.24,39.16]
[1758689024443,2.37767996,209.26,209.24,39.16]
[1758689024921,0.72,209.28,209.24,39.16]
[1758689025124,3.09767996,209.28,209.24,39.16]
[1758689025427,2.37767996,209.29,209.25,0.68]
[1758689025628,4.77783086,209.3,209.25,0.68]
[1758689025831,4.77760259,209.31,209.25,0.68]
[1758689026032,2.37767996,209.3,209.24,39.16]
[1758689026820,2.37767996,209.3,209.23,0.68]
[1758689027025,17.44160908,209.31,209.24,39.16]
[1758689027250,2.37767996,209.3,209.24,39.16]
[1758689027945,16.72320703,209.29,209.24,39.16]
[1758689028238,2.37767996,209.28,209.24,39.16]
[1758689028541,2.37767996,209.26,209.2,0.68]
[1758689028718,2.37767996,209.26,209.21,39.16]
[1758689029054,2.37767996,209.24,209.21,39.16]
[1758689029419,3.09767996,209.24,209.21,39.16]
[1758689030049,4.77942933,209.23,209.21,39.16]
[1758689030225,4.77942933,209.23,209.17,0.68]
[1758689030226,17.44800267,209.23,209.17,0.68]
[1758689030557,3.09767996,209.22,209.19,39.16]
[1758689031828,4.77988623,209.21,209.19,39.16]
[1758689033352,4.77988623,209.21,209.19,39.83]
[1758689033529,4.77988623,209.21,209.19,39.16]
[1758689033728,4.77988623,209.21,209.2,0.67]
[1758689033929,4.77942933,209.23,209.19,39.16]
[1758689034222,19.10416264,209.25,209.2,0.67]
[1758689034623,19.10416264,209.25,209.19,39.16]
[1758689035045,2.37767996,209.21,209.13,0.67]
[1758689035246,2.37767996,209.18,209.14,39.16]
[1758689035548,2.37767996,209.18,209.14,39.83]
[1758689035939,4.7808003,209.17,209.14,39.83]
[1758689036147,3.04767996,209.16,209.14,39.16]
[1758689036525,5.61658363,209.15,209.14,39.16]
[1758689037145,6.28658363,209.15,209.14,39.16]
[1758689037546,5.61658363,209.15,209.14,39.16]
[1758689037951,10.3978411,209.15,209.14,39.16]
[1758689039033,11.0678411,209.15,209.14,39.16]
[1758689039533,4.78125747,209.15,209.14,39.16]
[1758689039737,10.3978411,209.15,209.14,39.16]
[1758689040658,4.78034322,209.19,209.14,0.67]
[1758689040958,5.61658363,209.15,209.11,44.12214985]
[1758689041153,4.78034322,209.19,209.11,44.12214985]
[1758689041359,5.61658363,209.17,209.12,0.67]
[1758689041885,5.61658363,209.17,209.13,0.67]
[1758689042044,5.61658363,209.15,209.14,39.14]
[1758689042762,5.61658363,209.15,209.14,39.81]
[1758689042941,5.61658363,209.15,209.14,39.14]
[1758689043869,5.61658363,209.16,209.14,39.14]
[1758689044177,11.95092061,209.19,209.14,39.14]
[1758689044178,10.3978411,209.15,209.14,39.14]
[1758689045139,4.78125747,209.15,209.14,39.14]
[1758689045346,10.3978411,209.15,209.14,39.14]
[1758689046661,5.61658363,209.15,209.14,39.14]
[1758689047962,4.78044871,209.19,209.14,39.14]
[1758689048151,4.78044871,209.19,209.11,0.2]
[1758689048152,13.59559401,209.15,209.11,0.2]
[1758689048348,5.61658363,209.12,209.11,0.2]
[1758689048780,6.28658363,209.12,209.11,0.2]
[1758689048956,6.28658363,209.12,209.11,1e-08]
[1758689048957,45.88217764,209.12,209.11,1e-08]
[1758689049852,45.88217764,209.12,209.05,39.34]
[1758689049853,13.59559401,209.07,209.05,0.2]
[1758689050053,5.61658363,209.06,209.05,0.2]
[1758689050284,24.66549343,209.06,209.05,1e-08]
[1758689050482,28.414552,209.06,209.05,1e-08]
[1758689050984,10.39989942,209.06,209.05,1e-08]
[1758689051159,28.4902401,209.06,209.05,1e-08]
[1758689052280,24.66549343,209.06,209.05,1e-08]
[1758689053066,28.50998732,209.06,209.05,1e-08]
[1758689054284,19.0489098,209.06,209.05,1e-08]
[1758689054485,24.66549343,209.06,209.05,1e-08]
[1758689054682,18.3789098,209.06,209.05,1e-08]
[1758689054870,23.99549343,209.06,209.05,1e-08]
[1758689055268,4.78309164,209.07,209.05,1e-08]
[1758689055474,3.84872114,209.1,209.05,0.70000001]
[1758689055675,5.61658363,209.07,209.06,0.7]
[1758689056177,5.61658363,209.07,209.05,1e-08]
[1758689056376,5.61658363,209.07,209.05,0.70000001]
[1758689056575,5.61658363,209.07,209.06,0.7]
[1758689057584,5.61658363,209.07,209.05,1e-08]
[1758689057787,5.61658363,209.07,209.05,0.70000001]
[1758689058375,10.39967063,209.07,209.05,0.70000001]
[1758689058574,2.38406569,209.06,209.05,0.70000001]
[1758689058762,2.38406569,209.06,209.05,1e-08]